bitfinex-derivatives/quotes_SOLF0:USTF0_20240920
["timestamp","ask_amount","ask_price","bid_price","bid_amount"]
[1726875584675,10.43,146.76,146.7,10.43]
[1726875584864,10.43,146.76,146.71,10.43]
[1726875585771,10.43,146.78,146.73,10.43]
[1726875585970,10.43,146.78,146.74,10.43]
[1726875586876,13.836,146.78,146.75,3.4066]
[1726875590784,3.406,146.78,146.75,3.4066]
[1726875590986,13.836,146.78,146.75,3.4066]
[1726875600090,3.4057,146.79,146.76,3.4063]
[1726875600277,3.4057,146.79,146.75,10.43]
[1726875600688,3.4057,146.79,146.76,3.4063]
[1726875602277,10.43,146.8,146.76,3.4063]
[1726875602478,10.43,146.82,146.78,10.43]
[1726875602988,10.43,146.82,146.79,3.4055]
[1726875603990,13.835,146.82,146.79,3.4055]
[1726875609484,3.405,146.82,146.79,3.4055]
[1726875609697,10.43,146.83,146.8,3.4053]
[1726875610178,13.8349,146.83,146.79,13.8356]
[1726875612389,3.405,146.82,146.79,13.8356]
[1726875626290,10.43,146.8,146.62,6.814]
[1726875626608,1.3953,146.85,146.71,10.43]
[1726875626609,10.43,146.76,146.71,10.43]
[1726875626989,3.4067,146.75,146.71,10.43]
[1726875628500,20.44,146.84,146.73,10.43]
[1726875628704,10.43,146.79,146.74,10.43]
[1726875629894,3.4063,146.77,146.74,10.43]
[1726875633305,3.4063,146.77,146.73,13.837]
[1726875633502,3.4064,146.76,146.72,15.2564]
[1726875635002,3.4066,146.75,146.72,11.8491]
[1726875636407,3.4066,146.75,146.72,15.2564]
[1726875636706,3.4064,146.76,146.72,15.2564]
[1726875639908,3.4064,146.76,146.73,10.43]
[1726875642305,20.44,146.84,146.73,3.407]
[1726875642606,10.43,146.8,146.75,10.43]
[1726875643301,20.44,146.84,146.72,2.7252]
[1726875643604,10.43,146.83,146.78,10.43]
[1726875644105,3.4054,146.81,146.78,10.43]
[1726875644310,10.43,146.83,146.78,10.43]
[1726875644804,3.4051,146.82,146.77,3.4059]
[1726875645006,3.4051,146.82,146.79,10.43]
[1726875645199,3.4048,146.83,146.78,3.4057]
[1726875645404,3.4048,146.83,146.79,10.43]
[1726875647004,3.4048,146.83,146.79,13.8356]
[1726875647203,3.4048,146.83,146.79,10.43]
[1726875649712,3.405,146.82,146.79,10.43]
[1726875652213,3.405,146.82,146.78,13.8358]
[1726875653512,10.43,146.83,146.78,10.43]
[1726875654312,3.405,146.82,146.78,13.8358]
[1726875658318,3.405,146.82,146.78,3.4058]
[1726875658520,3.405,146.82,146.78,13.8358]
[1726875658909,3.4053,146.81,146.78,10.43]
[1726875659806,3.4053,146.81,146.78,13.8359]
[1726875660311,3.405,146.82,146.78,13.8359]
[1726875663316,10.43,146.83,146.78,10.43]
[1726875663523,10.43,146.8,146.72,9.5392]
[1726875663826,10.43,146.8,146.75,10.43]
[1726875664938,3.4058,146.79,146.75,13.8365]
[1726875666131,13.8355,146.8,146.76,3.4063]
[1726875666734,3.4055,146.8,146.76,13.8363]
[1726875667622,10.43,146.84,146.79,10.43]
[1726875668429,3.405,146.83,146.79,10.43]
[1726875668727,3.405,146.83,146.72,2.7252]
[1726875668728,10.43,146.86,146.81,10.43]
[1726875669027,3.4048,146.83,146.81,10.43]
[1726875671429,3.4046,146.84,146.81,10.43]
[1726875672823,3.4046,146.84,146.81,13.8352]
[1726875676417,3.4046,146.84,146.73,143.034]
[1726875676625,10.43,146.83,146.78,10.43]
[1726875677334,3.4052,146.82,146.78,13.8357]
[1726875677538,126.78083884,146.89,146.78,13.8357]
[1726875677832,10.43,146.8,146.77,10.43]
[1726875678350,10.43,146.8,146.77,13.8361]
[1726875678835,10.43,146.8,146.77,3.4061]
[1726875679042,10.43,146.8,146.77,13.8361]
[1726875679533,13.8354,146.81,146.77,13.8361]
[1726875681328,13.8354,146.81,146.78,13.8358]
[1726875681728,126.78083884,146.89,146.78,13.8358]
[1726875681729,3.405,146.82,146.78,13.8358]
[1726875682830,3.4048,146.83,146.8,10.43]
[1726875683136,10.43,146.86,146.81,10.43]
[1726875683326,3.4047,146.84,146.81,10.43]
[1726875684035,3.4047,146.84,146.8,3.4053]
[1726875684036,3.4047,146.83,146.8,13.8353]
[1726875697233,23.91944567,146.89,146.81,10.43]
[1726875697441,10.43,146.88,146.83,10.43]
[1726875697848,10.43,146.87,146.82,10.43]
[1726875698052,3.4045,146.85,146.82,10.43]
[1726875704859,3.4045,146.85,146.82,13.8349]
[1726875712550,3.404,146.87,146.83,13.8347]
[1726875712749,1.358,146.91,146.83,13.8347]
[1726875712750,10.43,146.88,146.83,13.8347]
[1726875713156,3.404,146.86,146.83,10.43]
[1726875716367,3.404,146.86,146.82,13.8349]
[1726875724179,3.4043,146.85,146.82,13.8349]
[1726875727976,3.4046,146.84,146.8,4.1458]
[1726875728174,10.43,146.84,146.8,14.5758]
[1726875728361,10.43,146.84,146.8,2.7495]
[1726875728776,10.43,146.81,146.78,74.32520074]
[1726875728982,10.43,146.81,146.76,10.43]
[1726875729579,3.4055,146.8,146.76,13.8362]
[1726875729782,10.43,146.81,146.76,13.8362]
[1726875730781,3.4057,146.79,146.76,13.8362]
[1726875731875,3.4055,146.8,146.76,13.8362]
[1726875732777,3.4055,146.8,146.78,10.43]
[1726875735285,3.4055,146.8,146.77,10.43]
[1726875738087,3.4055,146.8,146.78,10.43]
[1726875744794,3.4055,146.8,146.77,13.8361]
[1726875757996,3.4057,146.79,146.76,13.8363]
[1726875760195,10.43,146.8,146.75,2.7941]
[1726875760701,10.43,146.79,146.75,2.7941]
[1726875760902,10.43,146.77,146.73,3.407]
[1726875761807,3.4064,146.76,146.73,3.407]
[1726875762803,3.4064,146.76,146.73,13.837]
[1726875766236,10.43,146.78,146.73,13.837]
[1726875766237,3.4062,146.77,146.73,13.837]
[1726875770015,13.8362,146.77,146.73,3.407]
[1726875772510,13.8362,146.77,146.7,4.1406]
[1726875772511,10.43,146.77,146.7,4.1406]
[1726875772713,13.8366,146.75,146.72,3.4072]
[1726875773710,13.8365,146.76,146.72,3.4072]
[1726875775607,13.8365,146.76,146.72,13.8372]
[1726875780921,13.8365,146.76,146.72,3.4072]
[1726875783320,10.43,146.76,146.72,3.4072]
[1726875784318,13.8365,146.76,146.72,3.4072]
[1726875784622,3.39603465,146.79,146.71,10.43]
[1726875784623,10.43,146.74,146.71,3.4075]
[1726875786420,10.43,146.74,146.68,10.43]
[1726875787624,3.4072,146.73,146.69,3.408]
[1726875788717,3.4073,146.72,146.68,3.4082]
[1726875788910,3.4073,146.72,146.68,13.8382]
[1726875789819,3.4071,146.73,146.69,10.43]
[1726875790019,111.70837572,146.76,146.7,10.43]
[1726875790215,122.13837572,146.76,146.7,10.43]
[1726875790816,3.4066,146.75,146.72,3.4073]
[1726875791528,3.4066,146.75,146.71,3.4074]
[1726875791722,10.43,146.74,146.71,3.4074]
[1726875792624,13.8368,146.74,146.71,3.4074]
[1726875795131,3.4068,146.74,146.71,3.4074]
[1726875806842,10.43,146.72,146.65,2.7066]
[1726875807029,10.43,146.71,146.65,13.1366]
[1726875807637,10.43,146.71,146.66,3.4085]
[1726875807638,3.4079,146.7,146.66,3.4085]
[1726875809142,3.4081,146.69,146.65,16.5454]
[1726875809348,13.8381,146.69,146.65,6.1154]
[1726875814741,21.738,146.75,146.65,6.1154]
[1726875814742,13.8382,146.68,146.65,6.1154]
[1726875821858,13.8382,146.68,146.65,2.7066]
[1726875824655,3.4085,146.67,146.63,3.4093]
[1726875824857,3.4085,146.67,146.63,13.8393]
[1726875825056,13.8385,146.67,146.63,13.8393]
[1726875825258,13.8385,146.67,146.63,3.4093]
[1726875827248,3.4088,146.66,146.62,13.8394]
[1726875827449,3.4088,146.66,146.62,10.43]
[1726875828947,3.4088,146.66,146.63,3.4094]
[1726875829941,111.70837572,146.76,146.65,10.43]
[1726875830147,10.43,146.75,146.7,10.43]
[1726875830560,13.8367,146.75,146.7,13.8377]
[1726875831268,3.407,146.74,146.69,3.408]
[1726875831446,13.837,146.74,146.69,13.838]
[1726875831648,13.837,146.74,146.69,10.43]
[1726875832052,13.837,146.74,146.7,3.4076]
[1726875833152,13.837,146.74,146.69,10.43]
[1726875833153,10.43,146.74,146.71,3.4075]
[1726875837049,13.8366,146.75,146.71,3.4075]
[1726875837561,3.4068,146.74,146.7,3.4077]
[1726875837865,10.43,146.73,146.7,3.4077]
[1726875838366,10.43,146.72,146.68,13.838]
[1726875838665,10.43,146.72,146.68,3.408]
[1726875838862,13.8374,146.72,146.68,3.408]
[1726875839255,13.8377,146.71,146.67,3.4084]
[1726875839451,10.43,146.7,146.67,3.4084]
[1726875839667,10.43,146.7,146.66,2.8014]
[1726875839969,13.838,146.7,146.66,3.4085]
[1726875840167,10.43,146.7,146.66,3.4085]
[1726875840365,23.93774575,146.79,146.66,3.4085]
[1726875840366,10.43,146.69,146.66,3.4085]
[1726875840670,23.93774575,146.79,146.62,2.7116]
[1726875840671,10.43,146.68,146.62,2.7116]
[1726875840863,10.43,146.68,146.63,10.43]
[1726875841057,10.43,146.67,146.64,3.409]
[1726875841267,10.43,146.67,146.62,13.1416]
[1726875841765,13.8387,146.66,146.62,6.1212]
[1726875842156,23.89650494,146.7,146.59,3.4103]
[1726875842157,13.8395,146.63,146.59,3.4103]
[1726875842363,10.43,146.62,146.59,3.4103]
[1726875842858,10.43,146.63,146.59,13.8403]
[1726875843063,10.43,146.63,146.59,3.4103]
[1726875843963,10.43,146.63,146.59,13.8403]
[1726875844469,13.8396,146.63,146.59,10.43]
[1726875845769,13.8396,146.63,146.59,13.8401]
[1726875846466,13.8396,146.63,146.59,3.4101]
[1726875846661,10.43,146.62,146.57,3.4107]
[1726875846863,10.43,146.62,146.58,10.43]
[1726875847669,13.8398,146.62,146.58,13.8405]
[1726875847858,13.8398,146.62,146.58,10.43]
[1726875848859,13.8398,146.62,146.59,3.4103]
[1726875849061,13.8398,146.62,146.58,10.43]
[1726875850668,3.4098,146.62,146.58,13.8404]
[1726875852171,13.8395,146.63,146.58,10.43]
[1726875852373,10.43,146.64,146.59,10.43]
[1726875853173,13.8394,146.64,146.6,3.4101]
[1726875854381,3.4094,146.64,146.6,3.4101]
[1726875854575,10.43,146.63,146.6,3.4101]
[1726875858177,13.8394,146.63,146.6,3.4101]
[1726875861577,13.8394,146.63,146.59,13.8402]
[1726875863584,10.43,146.62,146.59,13.8402]
[1726875865687,10.43,146.62,146.59,3.4102]
[1726875867293,13.8397,146.62,146.58,13.8405]
[1726875867684,10.43,146.61,146.58,13.8405]
[1726875868796,10.43,146.61,146.59,3.4103]
[1726875869699,13.8397,146.62,146.59,3.4103]
[1726875873396,13.8399,146.61,146.54,4.14]
[1726875873705,13.8399,146.61,146.56,10.43]
[1726875874491,13.8399,146.61,146.57,3.4106]
[1726875876594,13.8399,146.61,146.57,13.8406]
[1726875880506,13.8399,146.61,146.58,3.4105]
[1726875891111,10.43,146.61,146.58,3.4105]
[1726875893012,13.8399,146.61,146.57,3.4107]
[1726875893611,13.8399,146.61,146.58,3.4105]
[1726875893807,10.43,146.61,146.54,4.14]
[1726875894117,10.43,146.6,146.56,10.43]
[1726875894309,10.43,146.6,146.57,3.4106]
[1726875897109,10.43,146.6,146.57,13.8406]
[1726875900626,10.43,146.6,146.58,3.4105]
[1726875902021,13.8401,146.6,146.56,6.1204428]
[1726875902217,13.8401,146.6,146.55,10.43]
[1726875902423,10.43,146.6,146.57,3.4106]
[1726875902820,10.43,146.6,146.57,13.8406]
[1726875903231,10.43,146.61,146.58,3.4105]
[1726875904419,10.43,146.61,146.58,9.53569776]
[1726875904930,13.8399,146.61,146.58,9.53569776]
[1726875905129,13.8399,146.61,146.58,9.54133788]
[1726875905325,13.8399,146.61,146.58,3.4105]
[1726875906617,13.8399,146.61,146.59,6.13889311]
[1726875906821,13.8399,146.61,146.58,3.4105]
[1726875907020,13.8399,146.61,146.59,6.13889395]
[1726875907213,13.8399,146.61,146.58,3.4105]
[1726875907413,13.8399,146.61,146.59,6.14392426]
[1726875907621,13.8399,146.61,146.6,6.14392426]
[1726875909943,13.8399,146.61,146.58,3.4105]
[1726875910440,13.8399,146.61,146.59,6.1523281]
[1726875910744,13.8399,146.61,146.58,3.4105]
[1726875911035,13.8399,146.61,146.59,6.15229531]
[1726875911231,13.8399,146.61,146.58,3.4105]
[1726875911430,13.8399,146.61,146.59,6.15262316]
[1726875911633,13.8399,146.61,146.58,3.4105]
[1726875911937,13.8399,146.61,146.59,6.15265458]
[1726875912134,13.8399,146.61,146.58,3.4105]
[1726875912727,13.8399,146.61,146.59,6.15188876]
[1726875912930,13.8399,146.61,146.58,3.4105]
[1726875913131,13.8399,146.61,146.59,6.15188851]
[1726875913339,13.8399,146.61,146.58,3.4105]
[1726875918533,3.4099,146.61,146.58,3.4105]
[1726875918841,13.8399,146.61,146.58,3.4105]
[1726875924842,10.43,146.61,146.59,3.4103]
[1726875925044,10.43,146.61,146.55,10.43]
[1726875925344,10.43,146.61,146.56,16.57667792]
[1726875925539,13.8399,146.61,146.58,3.4105]
[1726875947472,3.4099,146.61,146.58,3.4105]
[1726875957674,10.43,146.6,146.58,3.4105]
[1726875959663,3.4099,146.61,146.58,3.4105]
[1726875959963,13.8399,146.61,146.58,3.4105]
[1726875965676,3.4101,146.6,146.57,3.4107]
[1726875965978,3.4101,146.6,146.58,6.15110369]
[1726875966171,3.4101,146.6,146.57,3.4107]
[1726875966374,3.4101,146.6,146.58,6.15139449]
[1726875966672,13.8399,146.61,146.57,3.4107]
[1726875966877,13.8399,146.61,146.58,6.15141466]
[1726875967080,13.8399,146.61,146.57,3.4107]
[1726875967281,13.8399,146.61,146.58,6.15173625]
[1726875967474,13.8399,146.61,146.57,3.4107]
[1726875967786,23.89650494,146.7,146.6,10.43]
[1726875967979,23.89650494,146.7,146.62,10.43]
[1726875968174,21.8655,146.73,146.63,10.43]
[1726875968374,21.8655,146.73,146.59,1.4287]
[1726875968375,3.36086143,146.72,146.65,10.43]
[1726875968586,10.43,146.7,146.65,10.43]
[1726875969881,3.4082,146.68,146.65,13.8389]
[1726875974880,13.8382,146.68,146.64,13.8391]
[1726875977686,10.43,146.69,146.65,10.43]
[1726875977887,111.78317081,146.74,146.67,10.43]
[1726875978189,10.43,146.72,146.67,13.8383]
[1726875978385,3.4076,146.71,146.67,13.8383]
[1726875978580,10.43,146.72,146.67,10.43]
[1726875979592,3.4075,146.72,146.69,10.43]
[1726875981279,10.43,146.72,146.65,2.7792]
[1726875981485,10.43,146.72,146.67,13.8384]
[1726875982884,3.4078,146.7,146.67,13.8384]
[1726875988398,3.4076,146.71,146.68,13.8382]
[1726875990402,3.4076,146.71,146.68,10.43]
[1726875994392,3.4076,146.71,146.67,10.43]
[1726875994393,3.408,146.69,146.67,10.43]
[1726875996197,10.43,146.69,146.65,1.3863]
[1726875996508,10.43,146.68,146.64,1.3735]
[1726875996893,3.4085,146.67,146.64,1.3735]
[1726875997500,3.4085,146.67,146.64,11.8035]
[1726875998507,3.4087,146.66,146.64,11.8035]
[1726875999000,10.43,146.69,146.64,11.8035]
[1726875999300,3.4086,146.67,146.64,11.8035]
[1726876015118,10.43,146.67,146.62,13.8395]
[1726876015320,10.43,146.66,146.62,13.8395]
[1726876015919,10.43,146.66,146.62,3.4095]
[1726876016116,10.43,146.66,146.63,10.43]
[1726876016827,3.4089,146.65,146.63,10.43]
[1726876020334,3.4091,146.64,146.61,4.7599]
[1726876020522,3.4091,146.64,146.61,15.1899]
[1726876021437,3.4091,146.64,146.61,4.7599]
[1726876021618,3.4091,146.64,146.61,11.7801]
[1726876022023,3.4091,146.64,146.62,2.90321816]
[1726876025831,3.4091,146.64,146.61,15.1899]
[1726876026030,3.4091,146.64,146.63,2.90321816]
[1726876032728,13.8391,146.64,146.63,2.90321816]
[1726876070564,3.4091,146.64,146.63,2.90321816]
[1726876070776,10.43,146.66,146.63,2.90321816]
[1726876071573,10.43,146.65,146.63,2.90321816]
[1726876072172,3.4091,146.64,146.63,2.90321816]
[1726876073762,13.8391,146.64,146.63,2.90321816]
[1726876081571,34.2891,146.64,146.63,2.90321816]
[1726876081775,13.8391,146.64,146.63,2.90321816]
[1726876092270,3.4101,146.6,146.59,2.6857]
[1726876092476,13.8401,146.6,146.59,2.6857]
[1726876094169,13.8401,146.6,146.47,7.12293719]
[1726876094170,20.45,146.59,146.47,7.12293719]
[1726876094370,223.62531945,146.62,146.51,11.8528]
[1726876094575,10.43,146.57,146.52,16.57887914]
[1726876094777,10.43,146.57,146.53,6.14887914]
[1726876094992,10.43,146.56,146.51,11.8528]
[1726876095177,10.43,146.56,146.51,1.4228]
[1726876095379,10.43,146.54,146.51,1.4228]
[1726876096383,10.43,146.52,146.51,1.4228]
[1726876096781,13.8419,146.52,146.51,1.4228]
[1726876097788,3.4123,146.51,146.49,1.346]
[1726876098283,3.4124,146.5,146.49,1.346]
[1726876098483,10.43,146.5,146.47,1.4175]
[1726876098687,10.43,146.48,146.47,1.4175]
[1726876099182,10.43,146.48,146.45,1.3456]
[1726876099380,10.43,146.48,146.4,1.2958]
[1726876099381,10.43,146.46,146.42,1.4175]
[1726876099576,10.43,146.44,146.42,1.4175]
[1726876100879,3.414,146.43,146.42,1.4175]
[1726876102580,3.4143,146.42,146.41,1.3113]
[1726876103288,3.4141,146.43,146.41,1.3113]
[1726876103489,10.43,146.45,146.41,11.7413]
[1726876103988,10.43,146.45,146.42,1.3793]
[1726876104190,3.414,146.44,146.42,1.3793]
[1726876105887,10.43,146.46,146.42,11.8093]
[1726876106394,13.8434,146.46,146.42,11.8093]
[1726876109196,3.4136,146.45,146.42,11.8093]
[1726876113597,13.8436,146.45,146.42,11.8093]
[1726876114197,3.4138,146.44,146.42,11.8093]
[1726876115397,3.4138,146.44,146.42,1.3793]
[1726876115595,3.414,146.43,146.42,1.3793]
[1726876115791,13.844,146.43,146.42,1.3793]
[1726876115984,10.43,146.43,146.41,1.3113]
[1726876116184,10.43,146.42,146.41,1.3113]
[1726876116896,13.8443,146.42,146.41,1.3113]
[1726876118497,3.4148,146.4,146.37,3.4154]
[1726876118696,20.48,146.37,146.24,77.96095711]
[1726876118899,1.3301,146.49,146.15,6.8409]
[1726876118900,3.39664257,146.43,146.34,10.43]
[1726876119103,10.43,146.41,146.35,13.1808]
[1726876119307,10.43,146.41,146.37,10.43]
[1726876119496,10.43,146.41,146.38,1.2951]
[1726876119994,3.4148,146.4,146.38,1.2951]
[1726876120194,10.43,146.41,146.38,1.2951]
[1726876120810,3.415,146.39,146.38,1.2951]
[1726876122501,13.845,146.39,146.38,1.2951]
[1726876123794,3.4157,146.36,146.35,2.7508]
[1726876125299,3.4157,146.36,146.35,1.3166]
[1726876128302,3.38810486,146.47,146.35,10.43]
[1726876128501,10.43,146.41,146.36,10.43]
[1726876128814,3.4143,146.42,146.38,10.43]
[1726876129511,3.4143,146.42,146.39,1.3372]
[1726876130110,3.4145,146.41,146.39,1.3372]
[1726876131203,1.3301,146.49,146.4,10.43]
[1726876131402,10.43,146.45,146.4,11.8394]
[1726876132117,3.414,146.43,146.4,11.8394]
[1726876140304,3.4144,146.42,146.4,11.8394]
[1726876147414,3.4144,146.42,146.39,1.3372]
[1726876147616,3.4144,146.42,146.4,10.43]
[1726876151816,3.4141,146.43,146.4,10.43]
[1726876152016,3.4141,146.43,146.41,10.43]
[1726876152216,20.48,146.52,146.42,10.43]
[1726876152425,3.4135,146.46,146.44,10.43]
[1726876152625,10.43,146.48,146.4,1.3942]
[1726876152832,10.43,146.46,146.41,10.43]
[1726876153218,3.414,146.44,146.41,10.43]
[1726876153520,10.43,146.46,146.41,10.43]
[1726876154220,3.414,146.44,146.41,10.43]
[1726876154832,3.4141,146.43,146.41,10.43]
[1726876156125,3.4143,146.42,146.41,10.43]
[1726876157135,3.4143,146.42,146.4,1.3942]
[1726876157331,3.4143,146.42,146.4,11.8242]
[1726876157635,3.4145,146.41,146.4,1.3942]
[1726876160639,3.4143,146.42,146.4,11.8242]
[1726876160938,3.4143,146.42,146.41,10.43]
[1726876161947,3.4141,146.43,146.41,10.43]
[1726876171349,3.4141,146.43,146.4,11.8242]
[1726876171647,3.4143,146.42,146.4,11.8242]
[1726876175868,3.4143,146.42,146.41,10.43]
[1726876177563,3.4141,146.43,146.41,10.43]
[1726876177865,10.43,146.47,146.41,10.43]
[1726876178766,3.4142,146.43,146.41,10.43]
[1726876180163,3.4139,146.44,146.41,10.43]
[1726876180368,10.43,146.5,146.42,10.43]
[1726876180569,10.43,146.5,146.45,10.43]
[1726876181867,3.4137,146.45,146.43,11.7233]
[1726876183777,3.4138,146.44,146.43,11.7233]
[1726876200282,3.4136,146.45,146.43,11.7233]
[1726876200477,3.4136,146.45,146.44,10.43]
[1726876209496,6.8209,146.59,146.44,10.43]
[1726876209696,17.0363,146.73,146.51,10.43]
[1726876209697,2.48148474,146.57,146.51,10.43]
[1726876209888,1.3171,146.57,146.52,10.43]
[1726876210088,11.7471,146.57,146.52,10.43]
[1726876210693,11.7471,146.57,146.48,3.33721917]
[1726876210694,20.48,146.61,146.54,10.43]
[1726876210995,10.43,146.56,146.5,6.14051005]
[1726876211292,3.4119,146.53,146.51,10.43]
[1726876214186,10.43,146.54,146.49,1.4346]
[1726876214387,10.43,146.53,146.46,6.12780458]
[1726876214586,10.43,146.53,146.48,10.43]
[1726876214794,3.4126,146.5,146.48,10.43]
[1726876215591,10.43,146.5,146.41,1.3125]
[1726876215797,10.43,146.49,146.41,2.7041]
[1726876216000,10.43,146.49,146.45,10.43]
[1726876216993,3.4133,146.47,146.45,10.43]
[1726876218805,3.4133,146.47,146.44,1.3664]
[1726876219009,3.4133,146.47,146.45,10.43]
[1726876219501,10.43,146.5,146.45,10.43]
[1726876220095,10.43,146.5,146.46,10.43]
[1726876220291,1.3219,146.53,146.48,10.43]
[1726876220496,11.7519,146.53,146.49,10.43]
[1726876221495,3.4126,146.5,146.49,10.43]
[1726876225512,3.4128,146.49,146.44,4.78]
[1726876225699,10.43,146.5,146.46,10.43]
[1726876226215,3.4131,146.47,146.46,10.43]
[1726876226506,3.4131,146.47,146.44,11.7964]
[1726876227098,10.43,146.49,146.41,12.24987999]
[1726876227099,3.4136,146.45,146.41,12.24987999]
[1726876227414,3.4136,146.45,146.43,10.43]
[1726876230415,3.4141,146.43,146.41,8.83676006]
[1726876230610,10.43,146.46,146.41,2.7041]
[1726876230815,10.43,146.46,146.41,11.7425]
[1726876231611,3.4141,146.43,146.41,11.7425]
[1726876232921,3.4141,146.43,146.42,10.43]
[1726876234912,3.4141,146.43,146.41,1.3125]
[1726876235114,3.4141,146.43,146.4,10.43]
[1726876237624,3.4143,146.42,146.4,10.43]
[1726876238226,3.4145,146.41,146.38,9.55040544]
[1726876238427,3.4145,146.41,146.4,10.43]
[1726876238922,3.4148,146.4,146.38,10.43]
[1726876239525,21.8019,146.53,146.38,10.43]
[1726876239526,3.415,146.39,146.38,10.43]
[1726876241020,3.415,146.39,146.37,1.3299]
[1726876241219,1.3447,146.45,146.38,10.43]
[1726876241422,20.48,146.5,146.41,10.43]
[1726876241628,10.43,146.46,146.41,10.43]
[1726876242927,3.4144,146.42,146.41,10.43]
[1726876243524,3.4144,146.42,146.38,3.4152]
[1726876243724,3.4144,146.42,146.41,10.43]
[1726876243925,3.4144,146.42,146.4,10.43]
[1726876244430,3.4144,146.42,146.38,3.4152]
[1726876244630,3.4144,146.42,146.41,10.43]
[1726876246738,3.4141,146.43,146.41,10.43]
[1726876246918,3.4141,146.43,146.42,10.43]
[1726876251433,3.4143,146.42,146.41,10.43]
[1726876252137,10.43,146.46,146.41,10.43]
[1726876252338,10.43,146.46,146.42,10.43]
[1726876252536,1.3447,146.49,146.42,10.43]
[1726876252838,10.43,146.46,146.42,10.43]
[1726876253023,3.414,146.43,146.42,10.43]
[1726876253458,10.43,146.46,146.41,10.43]
[1726876254330,3.4142,146.43,146.41,10.43]
[1726876256537,1.3447,146.49,146.42,10.43]
[1726876256745,10.43,146.48,146.43,10.43]
[1726876256928,10.43,146.48,146.44,10.43]
[1726876257429,3.4135,146.46,146.44,10.43]
[1726876259549,3.4136,146.45,146.44,10.43]
[1726876259843,3.4136,146.45,146.43,10.43]
[1726876262939,10.43,146.47,146.42,2.6444]
[1726876263235,10.43,146.47,146.42,13.0744]
[1726876263634,3.4138,146.44,146.42,13.0744]
[1726876264330,3.4137,146.45,146.43,10.43]
[1726876269848,3.4134,146.46,146.43,10.43]
[1726876270044,10.43,146.51,146.45,10.43]
[1726876270245,10.43,146.51,146.47,10.43]
[1726876270551,3.4128,146.49,146.47,10.43]
[1726876270745,10.43,146.51,146.47,10.43]
[1726876271747,3.4129,146.48,146.47,10.43]
[1726876273052,3.4129,146.48,146.44,3.4137]
[1726876273053,3.4132,146.47,146.43,3.414]
[1726876273251,10.43,146.49,146.45,10.43]
[1726876273958,3.4133,146.47,146.45,10.43]
[1726876277160,3.4133,146.46,146.45,10.43]
[1726876278653,10.43,146.5,146.45,10.43]
[1726876278856,10.43,146.51,146.46,10.43]
[1726876280059,3.4129,146.48,146.46,10.43]
[1726876280455,3.4131,146.47,146.46,10.43]
[1726876283559,3.4129,146.48,146.46,10.43]
[1726876286063,10.43,146.51,146.46,10.43]